[Event "Titled Tuesday Blitz November 08 Early 2022"]
[White "Raahul V S"]
[Black "Samunenkov, Ihor"]
[WhiteFideId "25035525"]
[BlackFideId "14187086"]
[WhiteElo "2233"]
[BlackElo "2441"]
[Result "0-1"]
[Round "06"]
[TimeControl "180+1"]
[Date "2022.11.09"]
[WhiteClock "0:01:41"]
[BlackClock "0:01:05"]

1. c4 {[%clk 0:03:00]}  e6 {[%clk 0:02:55]} 2. g3 {[%clk 0:02:57]}  d5 {[%clk 0:02:56]} 3. Bg2 {[%clk 0:02:56]}  Nf6 {[%clk 0:02:56]} 4. Nf3 {[%clk 0:02:52]}  Be7 {[%clk 0:02:52]} 5. O-O {[%clk 0:02:51]}  O-O {[%clk 0:02:52]} 6. b3 {[%clk 0:02:49]}  d4 {[%clk 0:02:50]} 7. e3 {[%clk 0:02:47]}  c5 {[%clk 0:02:50]} 8. exd4 {[%clk 0:02:42]}  cxd4 {[%clk 0:02:51]} 9. Re1 {[%clk 0:02:41]}  Nc6 {[%clk 0:02:46]} 10. d3 {[%clk 0:02:41]}  a5 {[%clk 0:02:41]} 11. Ne5 {[%clk 0:02:38]}  Nxe5 {[%clk 0:02:06]} 12. Rxe5 {[%clk 0:02:39]}  Ra7 {[%clk 0:02:04]} 13. Ba3 {[%clk 0:02:36]}  Nd7 {[%clk 0:01:58]} 14. Rb5 {[%clk 0:02:33]}  b6 {[%clk 0:01:51]} 15. Bxe7 {[%clk 0:02:27]}  Qxe7 {[%clk 0:01:50]} 16. a3 {[%clk 0:02:17]}  g6 {[%clk 0:01:19]} 17. Qd2 {[%clk 0:02:05]}  Ba6 {[%clk 0:01:14]} 18. Rg5 {[%clk 0:01:58]}  Nc5 {[%clk 0:01:14]} 19. Qf4 {[%clk 0:01:41]}  Nxd3 {[%clk 0:01:05]} 0-1


[Site "https://www.chess.com"]

[Event "Titled Tuesday Blitz November 08 Early 2022"]
[White "Reprintsev, Alexander"]
[Black "Krysa, Leandro"]
[WhiteFideId "14100541"]
[BlackFideId "116807"]
[WhiteElo "2230"]
[BlackElo "2485"]
[Result "0-1"]
[Round "06"]
[TimeControl "180+1"]
[Date "2022.11.09"]
[WhiteClock "0:00:55"]
[BlackClock "0:00:28"]

1. e4 {[%clk 0:02:59]}  g6 {[%clk 0:03:00]} 2. d4 {[%clk 0:02:59]}  Bg7 {[%clk 0:03:00]} 3. Nc3 {[%clk 0:02:59]}  d6 {[%clk 0:03:00]} 4. h4 {[%clk 0:02:59]}  Nf6 {[%clk 0:02:52]} 5. h5 {[%clk 0:02:58]}  Nxh5 {[%clk 0:02:51]} 6. Rxh5 {[%clk 0:02:58]}  gxh5 {[%clk 0:02:51]} 7. Qxh5 {[%clk 0:02:58]}  Bxd4 {[%clk 0:02:38]} 8. Bc4 {[%clk 0:02:58]}  e6 {[%clk 0:02:38]} 9. Nge2 {[%clk 0:02:58]}  Bf6 {[%clk 0:02:31]} 10. Be3 {[%clk 0:02:47]}  Nc6 {[%clk 0:02:30]} 11. O-O-O {[%clk 0:02:46]}  Bd7 {[%clk 0:02:28]} 12. f4 {[%clk 0:02:46]}  Qe7 {[%clk 0:02:19]} 13. g4 {[%clk 0:02:23]}  O-O-O {[%clk 0:02:16]} 14. g5 {[%clk 0:02:23]}  Bg7 {[%clk 0:02:08]} 15. a3 {[%clk 0:02:20]}  h6 {[%clk 0:02:07]} 16. g6 {[%clk 0:02:17]}  fxg6 {[%clk 0:02:07]} 17. Qxg6 {[%clk 0:02:18]}  Qf6 {[%clk 0:02:03]} 18. Qh5 {[%clk 0:02:16]}  Rdg8 {[%clk 0:01:50]} 19. f5 {[%clk 0:02:14]}  Ne5 {[%clk 0:01:48]} 20. fxe6 {[%clk 0:02:09]}  Bxe6 {[%clk 0:01:45]} 21. Nd5 {[%clk 0:02:05]}  Bxd5 {[%clk 0:01:36]} 22. Bxd5 {[%clk 0:02:05]}  Rf8 {[%clk 0:01:34]} 23. Nd4 {[%clk 0:02:01]}  Kb8 {[%clk 0:01:26]} 24. Nf5 {[%clk 0:01:49]}  Rh7 {[%clk 0:00:46]} 25. Bd4 {[%clk 0:01:44]}  Bh8 {[%clk 0:00:42]} 26. Rf1 {[%clk 0:01:37]}  Qg5+ {[%clk 0:00:40]} 27. Qxg5 {[%clk 0:01:33]}  hxg5 {[%clk 0:00:41]} 28. Bc3 {[%clk 0:01:25]}  g4 {[%clk 0:00:38]} 29. Rg1 {[%clk 0:01:25]}  Nf3 {[%clk 0:00:35]} 30. Rd1 {[%clk 0:01:05]}  Bxc3 {[%clk 0:00:34]} 31. bxc3 {[%clk 0:01:05]}  Rh5 {[%clk 0:00:34]} 32. Bc4 {[%clk 0:01:00]}  Rg5 {[%clk 0:00:31]} 33. Be2 {[%clk 0:00:57]}  Ne5 {[%clk 0:00:28]} 34. Rg1 {[%clk 0:00:56]}  g3 {[%clk 0:00:28]} 35. Rxg3 {[%clk 0:00:55]}  Rfxf5 {[%clk 0:00:28]} 0-1


[Site "https://www.chess.com"]

[Event "Titled Tuesday Blitz November 08 Early 2022"]
[White "Ronka, Erik"]
[Black "Timofeev, Artyom"]
[WhiteFideId "505080"]
[BlackFideId "4140419"]
[WhiteElo "2264"]
[BlackElo "2586"]
[Result "0-1"]
[Round "06"]
[TimeControl "180+1"]
[Date "2022.11.09"]
[WhiteClock "0:00:13"]
[BlackClock "0:01:02"]

1. e4 {[%clk 0:03:00]}  c5 {[%clk 0:03:00]} 2. Nf3 {[%clk 0:03:00]}  Nc6 {[%clk 0:03:00]} 3. d4 {[%clk 0:03:01]}  cxd4 {[%clk 0:03:00]} 4. Nxd4 {[%clk 0:03:01]}  e5 {[%clk 0:03:00]} 5. Nb5 {[%clk 0:03:01]}  a6 {[%clk 0:03:00]} 6. Nd6+ {[%clk 0:03:00]}  Bxd6 {[%clk 0:03:00]} 7. Qxd6 {[%clk 0:03:01]}  Qe7 {[%clk 0:03:01]} 8. Qxe7+ {[%clk 0:02:53]}  Ngxe7 {[%clk 0:03:00]} 9. c4 {[%clk 0:02:54]}  Nd4 {[%clk 0:03:00]} 10. Bd3 {[%clk 0:02:53]}  Nec6 {[%clk 0:02:57]} 11. Nc3 {[%clk 0:02:41]}  Nb4 {[%clk 0:02:52]} 12. Kd2 {[%clk 0:02:39]}  d6 {[%clk 0:02:51]} 13. Ne2 {[%clk 0:02:30]}  Ne6 {[%clk 0:02:41]} 14. Bb1 {[%clk 0:02:19]}  b5 {[%clk 0:02:38]} 15. a3 {[%clk 0:02:04]}  Nc6 {[%clk 0:02:38]} 16. Ba2 {[%clk 0:01:57]}  Nc5 {[%clk 0:02:32]} 17. Ke3 {[%clk 0:01:53]}  Bb7 {[%clk 0:02:26]} 18. Bd2 {[%clk 0:01:50]}  O-O {[%clk 0:02:19]} 19. Rhd1 {[%clk 0:01:47]}  Kh8 {[%clk 0:02:05]} 20. g4 {[%clk 0:01:42]}  Rac8 {[%clk 0:01:53]} 21. Be1 {[%clk 0:01:40]}  bxc4 {[%clk 0:01:35]} 22. Bxc4 {[%clk 0:01:38]}  Nxe4 {[%clk 0:01:28]} 23. Kxe4 {[%clk 0:00:46]}  Nd4+ {[%clk 0:01:27]} 24. Bd5 {[%clk 0:00:34]}  Bxd5+ {[%clk 0:01:24]} 25. Kxd5 {[%clk 0:00:35]}  Nxe2 {[%clk 0:01:24]} 26. Kxd6 {[%clk 0:00:33]}  f6 {[%clk 0:01:18]} 27. Bb4 {[%clk 0:00:21]}  Rfd8+ {[%clk 0:01:12]} 28. Ke7 {[%clk 0:00:20]}  Nd4 {[%clk 0:01:12]} 29. Rac1 {[%clk 0:00:17]}  Re8+ {[%clk 0:01:09]} 30. Kf7 {[%clk 0:00:16]}  Ra8 {[%clk 0:01:05]} 31. Rc7 {[%clk 0:00:14]}  Ne6 {[%clk 0:01:03]} 32. Re7 {[%clk 0:00:13]}  Ng5# {[%clk 0:01:02]} 0-1


[Site "https://www.chess.com"]

[Event "Titled Tuesday Blitz November 08 Early 2022"]
[White "Rose, Felix"]
[Black "Zainullina, Nataliya"]
[WhiteFideId "5105722"]
[BlackFideId "4145488"]
[WhiteElo "2039"]
[BlackElo "2085"]
[Result "1-0"]
[Round "06"]
[TimeControl "180+1"]
[Date "2022.11.09"]
[WhiteClock "0:00:21"]
[BlackClock "0:00:08"]

1. e4 {[%clk 0:03:00]}  c6 {[%clk 0:02:58]} 2. d4 {[%clk 0:03:00]}  d5 {[%clk 0:02:58]} 3. e5 {[%clk 0:03:00]}  Bf5 {[%clk 0:02:58]} 4. h4 {[%clk 0:03:01]}  h5 {[%clk 0:02:56]} 5. Bd3 {[%clk 0:03:01]}  e6 {[%clk 0:02:52]} 6. Nf3 {[%clk 0:02:58]}  Ne7 {[%clk 0:02:51]} 7. O-O {[%clk 0:02:58]}  Bxd3 {[%clk 0:02:50]} 8. Qxd3 {[%clk 0:02:58]}  c5 {[%clk 0:02:50]} 9. c4 {[%clk 0:02:57]}  cxd4 {[%clk 0:02:43]} 10. Qxd4 {[%clk 0:02:19]}  Nbc6 {[%clk 0:02:24]} 11. Qd3 {[%clk 0:02:19]}  dxc4 {[%clk 0:02:19]} 12. Qxc4 {[%clk 0:02:20]}  Nf5 {[%clk 0:02:18]} 13. Bg5 {[%clk 0:02:16]}  Be7 {[%clk 0:02:18]} 14. Nc3 {[%clk 0:01:53]}  O-O {[%clk 0:02:15]} 15. Rad1 {[%clk 0:01:47]}  Qc7 {[%clk 0:02:15]} 16. Rfe1 {[%clk 0:01:41]}  Bxg5 {[%clk 0:02:10]} 17. hxg5 {[%clk 0:01:35]}  g6 {[%clk 0:02:07]} 18. g4 {[%clk 0:01:31]}  hxg4 {[%clk 0:01:57]} 19. Qxg4 {[%clk 0:01:30]}  Kg7 {[%clk 0:01:56]} 20. Kg2 {[%clk 0:01:25]}  Rh8 {[%clk 0:01:57]} 21. Nb5 {[%clk 0:01:03]}  Qa5 {[%clk 0:01:46]} 22. Nd6 {[%clk 0:00:57]}  Nxd6 {[%clk 0:01:03]} 23. Rxd6 {[%clk 0:00:40]}  Qxa2 {[%clk 0:00:59]} 24. Qf4 {[%clk 0:00:34]}  Kf8 {[%clk 0:00:29]} 25. Rd7 {[%clk 0:00:27]}  Nd8 {[%clk 0:00:17]} 26. Qf6 {[%clk 0:00:23]}  Ke8 {[%clk 0:00:08]} 27. Qe7# {[%clk 0:00:21]} 1-0


[Site "https://www.chess.com"]

[Event "Titled Tuesday Blitz November 08 Early 2022"]
[White "Sanchez, Robert"]
[Black "Arabidze, Meri"]
[WhiteFideId "2034360"]
[BlackFideId "13604040"]
[WhiteElo "2395"]
[BlackElo "2403"]
[Result "0-1"]
[Round "06"]
[TimeControl "180+1"]
[Date "2022.11.09"]
[WhiteClock "0:00:12"]
[BlackClock "0:00:13"]

1. e4 {[%clk 0:03:00]}  c5 {[%clk 0:02:59]} 2. Nf3 {[%clk 0:03:00]}  e6 {[%clk 0:02:59]} 3. d4 {[%clk 0:03:01]}  cxd4 {[%clk 0:03:00]} 4. Nxd4 {[%clk 0:03:02]}  Nc6 {[%clk 0:03:01]} 5. Nc3 {[%clk 0:03:02]}  a6 {[%clk 0:03:01]} 6. Be2 {[%clk 0:02:56]}  Nf6 {[%clk 0:03:01]} 7. O-O {[%clk 0:02:56]}  d6 {[%clk 0:03:01]} 8. Be3 {[%clk 0:02:55]}  Be7 {[%clk 0:03:02]} 9. f4 {[%clk 0:02:56]}  O-O {[%clk 0:03:02]} 10. a4 {[%clk 0:02:55]}  Bd7 {[%clk 0:03:01]} 11. Nb3 {[%clk 0:02:52]}  Na5 {[%clk 0:03:00]} 12. Bf3 {[%clk 0:02:47]}  Nxb3 {[%clk 0:02:59]} 13. cxb3 {[%clk 0:02:48]}  Bc6 {[%clk 0:02:59]} 14. b4 {[%clk 0:02:39]}  d5 {[%clk 0:02:58]} 15. e5 {[%clk 0:02:37]}  Ne4 {[%clk 0:02:38]} 16. Bxe4 {[%clk 0:02:35]}  dxe4 {[%clk 0:02:38]} 17. b5 {[%clk 0:02:36]}  axb5 {[%clk 0:02:25]} 18. axb5 {[%clk 0:02:35]}  Rxa1 {[%clk 0:02:25]} 19. Qxa1 {[%clk 0:02:34]}  Qd3 {[%clk 0:02:25]} 20. Qc1 {[%clk 0:02:09]}  Bxb5 {[%clk 0:02:15]} 21. Rd1 {[%clk 0:02:09]}  Qc4 {[%clk 0:02:15]} 22. Rd4 {[%clk 0:02:02]}  Qc6 {[%clk 0:02:11]} 23. Nxb5 {[%clk 0:01:55]}  Qxb5 {[%clk 0:02:09]} 24. Rxe4 {[%clk 0:01:51]}  Ra8 {[%clk 0:02:02]} 25. Rc4 {[%clk 0:01:49]}  g6 {[%clk 0:01:47]} 26. Rc7 {[%clk 0:01:40]}  Qb4 {[%clk 0:01:29]} 27. h3 {[%clk 0:01:03]}  Kg7 {[%clk 0:01:23]} 28. f5 {[%clk 0:00:45]}  gxf5 {[%clk 0:01:13]} 29. Bh6+ {[%clk 0:00:43]}  Kg6 {[%clk 0:01:14]} 30. Rc4 {[%clk 0:00:31]}  Qb6+ {[%clk 0:01:06]} 31. Kh2 {[%clk 0:00:30]}  Qf2 {[%clk 0:00:53]} 32. Rc3 {[%clk 0:00:26]}  Bh4 {[%clk 0:00:34]} 33. Bf4 {[%clk 0:00:21]}  Ra4 {[%clk 0:00:26]} 34. Bg3 {[%clk 0:00:20]}  Qd4 {[%clk 0:00:16]} 35. Bxh4 {[%clk 0:00:20]}  Qxh4 {[%clk 0:00:17]} 36. Rg3+ {[%clk 0:00:20]}  Rg4 {[%clk 0:00:16]} 37. Rf3 {[%clk 0:00:12]}  Rg5 {[%clk 0:00:14]} 38. Qe3 {[%clk 0:00:12]}  Qe4 {[%clk 0:00:12]} 39. Qxe4 {[%clk 0:00:11]}  fxe4 {[%clk 0:00:13]} 40. Rb3 {[%clk 0:00:12]}  Rxe5 {[%clk 0:00:13]} 41. Rxb7 {[%clk 0:00:12]}  e3 {[%clk 0:00:13]} 0-1


[Site "https://www.chess.com"]

[Event "Titled Tuesday Blitz November 08 Early 2022"]
[White "Seletsky, Grigory"]
[Black "Lawson, Eric"]
[WhiteFideId "14112191"]
[BlackFideId "2604116"]
[WhiteElo "2492"]
[BlackElo "2513"]
[Result "0-1"]
[Round "06"]
[TimeControl "180+1"]
[Date "2022.11.09"]
[WhiteClock "0:00:19"]
[BlackClock "0:00:24"]

1. e4 {[%clk 0:02:58]}  c5 {[%clk 0:03:00]} 2. Nc3 {[%clk 0:02:57]}  d6 {[%clk 0:02:59]} 3. Bc4 {[%clk 0:02:53]}  g6 {[%clk 0:02:58]} 4. d3 {[%clk 0:02:53]}  Bg7 {[%clk 0:02:58]} 5. f4 {[%clk 0:02:53]}  Nf6 {[%clk 0:02:57]} 6. Nf3 {[%clk 0:02:53]}  O-O {[%clk 0:02:56]} 7. O-O {[%clk 0:02:54]}  Bg4 {[%clk 0:02:55]} 8. Qe1 {[%clk 0:02:52]}  Bxf3 {[%clk 0:02:52]} 9. Rxf3 {[%clk 0:02:51]}  e6 {[%clk 0:02:50]} 10. f5 {[%clk 0:02:46]}  d5 {[%clk 0:02:50]} 11. Bb3 {[%clk 0:02:43]}  dxe4 {[%clk 0:02:28]} 12. dxe4 {[%clk 0:02:40]}  c4 {[%clk 0:02:26]} 13. e5 {[%clk 0:02:28]}  cxb3 {[%clk 0:01:45]} 14. exf6 {[%clk 0:02:26]}  Qxf6 {[%clk 0:01:44]} 15. fxe6 {[%clk 0:02:23]}  Qxe6 {[%clk 0:01:44]} 16. Qxe6 {[%clk 0:02:19]}  fxe6 {[%clk 0:01:45]} 17. Rxf8+ {[%clk 0:02:18]}  Kxf8 {[%clk 0:01:40]} 18. axb3 {[%clk 0:02:16]}  Nc6 {[%clk 0:01:39]} 19. Be3 {[%clk 0:02:14]}  Bd4 {[%clk 0:01:17]} 20. Kf2 {[%clk 0:02:06]}  Ke7 {[%clk 0:01:17]} 21. Nd1 {[%clk 0:02:01]}  a6 {[%clk 0:01:13]} 22. c3 {[%clk 0:01:58]}  Be5 {[%clk 0:01:12]} 23. h3 {[%clk 0:01:54]}  h5 {[%clk 0:01:12]} 24. Ke2 {[%clk 0:01:54]}  Rg8 {[%clk 0:01:08]} 25. Nf2 {[%clk 0:01:49]}  g5 {[%clk 0:01:08]} 26. g4 {[%clk 0:01:46]}  h4 {[%clk 0:01:07]} 27. Ne4 {[%clk 0:01:42]}  Bf4 {[%clk 0:01:07]} 28. Bc5+ {[%clk 0:01:38]}  Kf7 {[%clk 0:01:05]} 29. Rd1 {[%clk 0:01:38]}  Rd8 {[%clk 0:01:03]} 30. Rxd8 {[%clk 0:01:37]}  Nxd8 {[%clk 0:01:03]} 31. Bd6 {[%clk 0:01:17]}  e5 {[%clk 0:00:56]} 32. b4 {[%clk 0:01:13]}  Ne6 {[%clk 0:00:52]} 33. b3 {[%clk 0:01:05]}  Bh2 {[%clk 0:00:52]} 34. Kf3 {[%clk 0:01:02]}  Kg6 {[%clk 0:00:50]} 35. Kg2 {[%clk 0:00:52]}  Bf4 {[%clk 0:00:49]} 36. Bc5 {[%clk 0:00:51]}  Bc1 {[%clk 0:00:44]} 37. Bd6 {[%clk 0:00:50]}  Nf4+ {[%clk 0:00:42]} 38. Kh2 {[%clk 0:00:47]}  Nd3 {[%clk 0:00:42]} 39. Kg2 {[%clk 0:00:43]}  Kf7 {[%clk 0:00:42]} 40. Nc5 {[%clk 0:00:35]}  Nf4+ {[%clk 0:00:41]} 41. Kh2 {[%clk 0:00:35]}  Kf6 {[%clk 0:00:38]} 42. Ne4+ {[%clk 0:00:33]}  Ke6 {[%clk 0:00:38]} 43. Bc5 {[%clk 0:00:32]}  Ne2 {[%clk 0:00:35]} 44. c4 {[%clk 0:00:30]}  Bf4+ {[%clk 0:00:30]} 45. Kg2 {[%clk 0:00:29]}  Ng3 {[%clk 0:00:29]} 46. Kf3 {[%clk 0:00:25]}  Nf1 {[%clk 0:00:26]} 47. Be3 {[%clk 0:00:19]}  Nxe3 {[%clk 0:00:24]} 0-1


[Site "https://www.chess.com"]

[Event "Titled Tuesday Blitz November 08 Early 2022"]
[White "Sibilio, Mario"]
[Black "Bodnaruk, Anastasia"]
[WhiteFideId "800422"]
[BlackFideId "4181751"]
[WhiteElo "2251"]
[BlackElo "2319"]
[Result "0-1"]
[Round "06"]
[TimeControl "180+1"]
[Date "2022.11.09"]
[WhiteClock "0:00:01"]
[BlackClock "0:00:09"]

1. e4 {[%clk 0:03:00]}  c5 {[%clk 0:02:58]} 2. Nf3 {[%clk 0:03:00]}  d6 {[%clk 0:02:58]} 3. b3 {[%clk 0:03:00]}  Nf6 {[%clk 0:02:55]} 4. e5 {[%clk 0:03:00]}  dxe5 {[%clk 0:02:53]} 5. Nxe5 {[%clk 0:03:00]}  a6 {[%clk 0:02:45]} 6. Bb2 {[%clk 0:02:55]}  e6 {[%clk 0:02:45]} 7. a4 {[%clk 0:02:50]}  b6 {[%clk 0:02:38]} 8. Qf3 {[%clk 0:02:33]}  Ra7 {[%clk 0:02:34]} 9. Na3 {[%clk 0:02:31]}  Be7 {[%clk 0:02:22]} 10. Bd3 {[%clk 0:02:26]}  O-O {[%clk 0:02:19]} 11. O-O {[%clk 0:02:22]}  Bb7 {[%clk 0:02:15]} 12. Qh3 {[%clk 0:02:17]}  h6 {[%clk 0:02:11]} 13. Rae1 {[%clk 0:02:13]}  Nc6 {[%clk 0:02:05]} 14. Nxc6 {[%clk 0:01:58]}  Bxc6 {[%clk 0:02:04]} 15. Nc4 {[%clk 0:01:59]}  Ba8 {[%clk 0:01:50]} 16. Ne5 {[%clk 0:01:51]}  Bd6 {[%clk 0:01:27]} 17. f4 {[%clk 0:01:50]}  Bxe5 {[%clk 0:01:09]} 18. Bxe5 {[%clk 0:01:38]}  Nd5 {[%clk 0:01:08]} 19. Rf3 {[%clk 0:01:22]}  f5 {[%clk 0:01:07]} 20. Rg3 {[%clk 0:01:17]}  Kh7 {[%clk 0:01:04]} 21. Bxg7 {[%clk 0:01:08]}  Rxg7 {[%clk 0:01:00]} 22. Rxe6 {[%clk 0:01:08]}  Rf6 {[%clk 0:00:46]} 23. Bxf5+ {[%clk 0:01:05]}  Kg8 {[%clk 0:00:31]} 24. Qh5 {[%clk 0:00:33]}  Bc6 {[%clk 0:00:23]} 25. c4 {[%clk 0:00:18]}  Nc7 {[%clk 0:00:18]} 26. Rxg7+ {[%clk 0:00:15]}  Kxg7 {[%clk 0:00:18]} 27. Qg4+ {[%clk 0:00:15]}  Kh8 {[%clk 0:00:16]} 28. Rxf6 {[%clk 0:00:13]}  Qxf6 {[%clk 0:00:16]} 29. h4 {[%clk 0:00:12]}  Be8 {[%clk 0:00:13]} 30. h5 {[%clk 0:00:11]}  Bf7 {[%clk 0:00:13]} 31. Bg6 {[%clk 0:00:10]}  Bxg6 {[%clk 0:00:12]} 32. hxg6 {[%clk 0:00:10]}  Ne6 {[%clk 0:00:12]} 33. f5 {[%clk 0:00:09]}  Nd4 {[%clk 0:00:12]} 34. Qe4 {[%clk 0:00:08]}  Qxf5 {[%clk 0:00:10]} 35. Qe8+ {[%clk 0:00:06]}  Kg7 {[%clk 0:00:10]} 36. Qe7+ {[%clk 0:00:06]}  Kxg6 {[%clk 0:00:11]} 37. Qd6+ {[%clk 0:00:06]}  Qf6 {[%clk 0:00:11]} 38. Qg3+ {[%clk 0:00:05]}  Kh7 {[%clk 0:00:10]} 39. Qc7+ {[%clk 0:00:04]}  Qg7 {[%clk 0:00:09]} 40. Qxb6 {[%clk 0:00:04]}  Nf3+ {[%clk 0:00:08]} 41. Kf2 {[%clk 0:00:03]}  Nxd2 {[%clk 0:00:09]} 42. Ke2 {[%clk 0:00:01]}  Ne4 {[%clk 0:00:09]} 0-1


[Site "https://www.chess.com"]

[Event "Titled Tuesday Blitz November 08 Early 2022"]
[White "Sreyas Payyappat"]
[Black "Bongo Akanga Ndjila, Barthelemy"]
[WhiteFideId "46674969"]
[BlackFideId "10609431"]
[WhiteElo "2083"]
[BlackElo "1768"]
[Result "1-0"]
[Round "06"]
[TimeControl "180+1"]
[Date "2022.11.09"]
[WhiteClock "0:00:37"]
[BlackClock "0:01:46"]

1. e4 {[%clk 0:03:00]}  c6 {[%clk 0:02:54]} 2. d4 {[%clk 0:03:00]}  d5 {[%clk 0:02:55]} 3. Nc3 {[%clk 0:03:00]}  dxe4 {[%clk 0:02:55]} 4. Nxe4 {[%clk 0:03:01]}  g6 {[%clk 0:02:55]} 5. Nf3 {[%clk 0:03:00]}  Bg7 {[%clk 0:02:55]} 6. Bd3 {[%clk 0:03:01]}  Bg4 {[%clk 0:02:54]} 7. Be3 {[%clk 0:03:00]}  Bxf3 {[%clk 0:02:50]} 8. Qxf3 {[%clk 0:03:00]}  Bxd4 {[%clk 0:02:50]} 9. Bxd4 {[%clk 0:03:01]}  Qxd4 {[%clk 0:02:48]} 10. O-O-O {[%clk 0:03:01]}  Qa4 {[%clk 0:02:45]} 11. Rhe1 {[%clk 0:02:35]}  Nh6 {[%clk 0:02:23]} 12. Nd6+ {[%clk 0:01:37]}  Kf8 {[%clk 0:02:19]} 13. Qe3 {[%clk 0:01:30]}  Kg7 {[%clk 0:02:14]} 14. Qe5+ {[%clk 0:01:01]}  Kg8 {[%clk 0:02:07]} 15. Qxe7 {[%clk 0:01:00]}  Qxa2 {[%clk 0:02:06]} 16. Bc4 {[%clk 0:00:37]}  Qa1+ {[%clk 0:02:01]} 17. Kd2 {[%clk 0:00:37]}  Qa5+ {[%clk 0:01:46]} 18. c3 {[%clk 0:00:37]} 1-0


[Site "https://www.chess.com"]

[Event "Titled Tuesday Blitz November 08 Early 2022"]
[White "Starosta, Martyna"]
[Black "Ernst, Sipke"]
[WhiteFideId "21818754"]
[BlackFideId "1004689"]
[WhiteElo "1825"]
[BlackElo "2436"]
[Result "1-0"]
[Round "06"]
[TimeControl "180+1"]
[Date "2022.11.09"]
[WhiteClock "0:00:27"]
[BlackClock "0:00:47"]

1. e4 {[%clk 0:03:00]}  e5 {[%clk 0:02:59]} 2. Nf3 {[%clk 0:02:55]}  Nc6 {[%clk 0:02:59]} 3. Bb5 {[%clk 0:02:53]}  a6 {[%clk 0:03:00]} 4. Ba4 {[%clk 0:02:53]}  Nf6 {[%clk 0:03:00]} 5. O-O {[%clk 0:02:53]}  Nxe4 {[%clk 0:03:01]} 6. d4 {[%clk 0:02:50]}  b5 {[%clk 0:03:01]} 7. Bb3 {[%clk 0:02:51]}  d5 {[%clk 0:03:02]} 8. dxe5 {[%clk 0:02:50]}  Be6 {[%clk 0:03:02]} 9. Qe2 {[%clk 0:02:47]}  Be7 {[%clk 0:03:02]} 10. Rd1 {[%clk 0:02:48]}  O-O {[%clk 0:03:02]} 11. c4 {[%clk 0:02:49]}  bxc4 {[%clk 0:03:02]} 12. Bxc4 {[%clk 0:02:49]}  Bc5 {[%clk 0:03:03]} 13. Be3 {[%clk 0:02:44]}  Bxe3 {[%clk 0:03:03]} 14. Qxe3 {[%clk 0:02:44]}  Qb8 {[%clk 0:03:03]} 15. Bb3 {[%clk 0:02:42]}  Na5 {[%clk 0:03:03]} 16. Nd4 {[%clk 0:02:35]}  Qb6 {[%clk 0:02:47]} 17. Na3 {[%clk 0:02:34]}  Rab8 {[%clk 0:02:40]} 18. Bc2 {[%clk 0:02:13]}  Nc5 {[%clk 0:02:12]} 19. f4 {[%clk 0:02:05]}  f5 {[%clk 0:01:57]} 20. Nxe6 {[%clk 0:01:30]}  Nxe6 {[%clk 0:01:55]} 21. Qxb6 {[%clk 0:01:31]}  Rxb6 {[%clk 0:01:52]} 22. Rxd5 {[%clk 0:01:25]}  c5 {[%clk 0:01:48]} 23. b3 {[%clk 0:01:13]}  Nxf4 {[%clk 0:01:38]} 24. Rxc5 {[%clk 0:01:13]}  Ne6 {[%clk 0:01:38]} 25. Rxa5 {[%clk 0:01:12]}  Rc6 {[%clk 0:01:33]} 26. Nc4 {[%clk 0:01:04]}  Nd4 {[%clk 0:01:32]} 27. Bd3 {[%clk 0:01:03]}  Rd8 {[%clk 0:01:30]} 28. Re1 {[%clk 0:00:57]}  Kf8 {[%clk 0:01:29]} 29. Bxf5 {[%clk 0:00:54]}  Nxf5 {[%clk 0:01:14]} 30. Rf1 {[%clk 0:00:53]}  g6 {[%clk 0:01:12]} 31. g4 {[%clk 0:00:54]}  Ke7 {[%clk 0:01:11]} 32. gxf5 {[%clk 0:00:55]}  gxf5 {[%clk 0:01:11]} 33. Rxf5 {[%clk 0:00:50]}  Rg6+ {[%clk 0:01:11]} 34. Kf2 {[%clk 0:00:49]}  Rdg8 {[%clk 0:01:06]} 35. Ne3 {[%clk 0:00:48]}  Rc8 {[%clk 0:01:04]} 36. e6 {[%clk 0:00:42]}  Rxe6 {[%clk 0:01:00]} 37. Rae5 {[%clk 0:00:40]}  Rc1 {[%clk 0:01:00]} 38. Rxe6+ {[%clk 0:00:39]}  Kxe6 {[%clk 0:01:00]} 39. Rh5 {[%clk 0:00:38]}  Rb1 {[%clk 0:00:56]} 40. Rh6+ {[%clk 0:00:35]}  Ke5 {[%clk 0:00:57]} 41. Kf3 {[%clk 0:00:33]}  a5 {[%clk 0:00:56]} 42. Nc4+ {[%clk 0:00:32]}  Kd4 {[%clk 0:00:55]} 43. Nxa5 {[%clk 0:00:33]}  Rb2 {[%clk 0:00:55]} 44. Rxh7 {[%clk 0:00:28]}  Rxa2 {[%clk 0:00:55]} 45. Nc6+ {[%clk 0:00:28]}  Kc5 {[%clk 0:00:53]} 46. Ne5 {[%clk 0:00:28]}  Kd5 {[%clk 0:00:51]} 47. Nd3 {[%clk 0:00:27]}  Rd2 {[%clk 0:00:50]} 48. Rd7+ {[%clk 0:00:26]}  Ke6 {[%clk 0:00:48]} 49. Nc5+ {[%clk 0:00:26]}  Ke5 {[%clk 0:00:48]} 50. Rxd2 {[%clk 0:00:27]}  Kf5 {[%clk 0:00:47]} 51. b4 {[%clk 0:00:27]} 1-0


[Site "https://www.chess.com"]